[Event "Titled Tuesday Blitz April 25 Early 2023"]
[White "Martinez Ramirez, Lennis"]
[Black "Kopczynski, Michal"]
[WhiteFideId "3509079"]
[BlackFideId "1124200"]
[WhiteElo "2410"]
[BlackElo "2212"]
[Result "1-0"]
[Round "04"]
[TimeControl "180+2"]
[Date "2023.04.25"]
[WhiteClock "0:01:23"]
[BlackClock "0:00:25"]

1. d4 {[%clk 0:02:55]}  Nf6 {[%clk 0:02:59]} 2. Nc3 {[%clk 0:02:56]}  c5 {[%clk 0:02:56]} 3. Bg5 {[%clk 0:02:57]}  cxd4 {[%clk 0:02:56]} 4. Qxd4 {[%clk 0:02:58]}  Nc6 {[%clk 0:02:55]} 5. Qh4 {[%clk 0:02:58]}  d6 {[%clk 0:02:54]} 6. O-O-O {[%clk 0:02:58]}  Bf5 {[%clk 0:02:53]} 7. Bxf6 {[%clk 0:02:59]}  gxf6 {[%clk 0:02:52]} 8. e4 {[%clk 0:03:00]}  Bg6 {[%clk 0:02:52]} 9. Nh3 {[%clk 0:02:58]}  Qa5 {[%clk 0:02:49]} 10. Nf4 {[%clk 0:02:58]}  O-O-O {[%clk 0:02:47]} 11. Nxg6 {[%clk 0:02:58]}  fxg6 {[%clk 0:02:48]} 12. Bc4 {[%clk 0:02:58]}  Kb8 {[%clk 0:02:44]} 13. Be6 {[%clk 0:02:54]}  Bg7 {[%clk 0:02:40]} 14. Rd5 {[%clk 0:02:50]}  Qb6 {[%clk 0:02:31]} 15. Rb5 {[%clk 0:02:50]}  Qa6 {[%clk 0:02:29]} 16. Rd1 {[%clk 0:02:46]}  f5 {[%clk 0:02:24]} 17. Rb3 {[%clk 0:02:06]}  Bf6 {[%clk 0:02:23]} 18. Qg3 {[%clk 0:02:04]}  Nd4 {[%clk 0:02:21]} 19. Rxd4 {[%clk 0:01:53]}  Bxd4 {[%clk 0:02:22]} 20. Nb5 {[%clk 0:01:53]}  Be5 {[%clk 0:02:13]} 21. Qe3 {[%clk 0:01:53]}  f4 {[%clk 0:01:59]} 22. Qd3 {[%clk 0:01:50]}  Qxa2 {[%clk 0:01:53]} 23. Bd5 {[%clk 0:01:44]}  Rc8 {[%clk 0:01:28]} 24. Bxb7 {[%clk 0:01:37]}  Kxb7 {[%clk 0:00:34]} 25. Nxd6+ {[%clk 0:01:36]}  Kc6 {[%clk 0:00:28]} 26. Qd5+ {[%clk 0:01:27]}  Kd7 {[%clk 0:00:29]} 27. Rb7+ {[%clk 0:01:27]}  Kd8 {[%clk 0:00:25]} 28. Nf7+ {[%clk 0:01:23]}  Ke8 {[%clk 0:00:25]} 29. Qxa2 {[%clk 0:01:23]} 1-0


[Site "https://www.chess.com"]

[Event "Titled Tuesday Blitz April 25 Early 2023"]
[White "Mordechai, Hanan"]
[Black "Belenkaya, Dina"]
[WhiteFideId "2804166"]
[BlackFideId "24142654"]
[WhiteElo "2324"]
[BlackElo "2208"]
[Result "1-0"]
[Round "04"]
[TimeControl "180+2"]
[Date "2023.04.25"]
[WhiteClock "0:00:17"]
[BlackClock "0:00:21"]

1. Nf3 {[%clk 0:03:00]}  d5 {[%clk 0:02:59]} 2. g3 {[%clk 0:03:01]}  g6 {[%clk 0:02:55]} 3. Bg2 {[%clk 0:03:02]}  Bg7 {[%clk 0:02:56]} 4. O-O {[%clk 0:03:03]}  e5 {[%clk 0:02:56]} 5. d3 {[%clk 0:03:03]}  Ne7 {[%clk 0:02:55]} 6. c4 {[%clk 0:03:02]}  c6 {[%clk 0:02:54]} 7. Nbd2 {[%clk 0:02:55]}  O-O {[%clk 0:02:53]} 8. Rb1 {[%clk 0:02:55]}  Nd7 {[%clk 0:02:48]} 9. b4 {[%clk 0:02:54]}  d4 {[%clk 0:02:43]} 10. b5 {[%clk 0:02:51]}  c5 {[%clk 0:02:42]} 11. a4 {[%clk 0:02:51]}  Rb8 {[%clk 0:02:41]} 12. Nb3 {[%clk 0:02:47]}  Qc7 {[%clk 0:02:31]} 13. a5 {[%clk 0:02:41]}  Qd6 {[%clk 0:02:31]} 14. Ba3 {[%clk 0:02:38]}  f5 {[%clk 0:02:31]} 15. e3 {[%clk 0:02:24]}  b6 {[%clk 0:02:11]} 16. exd4 {[%clk 0:02:20]}  exd4 {[%clk 0:02:10]} 17. Bc1 {[%clk 0:02:05]}  g5 {[%clk 0:01:07]} 18. Bxg5 {[%clk 0:01:58]}  Ng6 {[%clk 0:01:07]} 19. Nh4 {[%clk 0:01:24]}  Bb7 {[%clk 0:01:04]} 20. Re1 {[%clk 0:01:07]}  Bxg2 {[%clk 0:01:03]} 21. Nxg2 {[%clk 0:01:07]}  Nde5 {[%clk 0:01:01]} 22. Nf4 {[%clk 0:00:59]}  Nxf4 {[%clk 0:00:49]} 23. Bxf4 {[%clk 0:00:58]}  Rbe8 {[%clk 0:00:49]} 24. axb6 {[%clk 0:00:53]}  axb6 {[%clk 0:00:49]} 25. Ra1 {[%clk 0:00:53]}  Qd7 {[%clk 0:00:47]} 26. Bxe5 {[%clk 0:00:47]}  Bxe5 {[%clk 0:00:45]} 27. Qf3 {[%clk 0:00:47]}  Bb8 {[%clk 0:00:43]} 28. Rxe8 {[%clk 0:00:40]}  Rxe8 {[%clk 0:00:44]} 29. Kf1 {[%clk 0:00:38]}  Qe6 {[%clk 0:00:41]} 30. Kg2 {[%clk 0:00:33]}  Kg7 {[%clk 0:00:40]} 31. Ra8 {[%clk 0:00:33]}  f4 {[%clk 0:00:30]} 32. Qb7+ {[%clk 0:00:32]}  Qf7 {[%clk 0:00:20]} 33. Rxb8 {[%clk 0:00:21]}  f3+ {[%clk 0:00:21]} 34. Kf1 {[%clk 0:00:10]}  Re7 {[%clk 0:00:21]} 35. Qd5 {[%clk 0:00:07]}  Qf6 {[%clk 0:00:20]} 36. Nd2 {[%clk 0:00:03]}  Rf7 {[%clk 0:00:19]} 37. Rb7 {[%clk 0:00:03]}  Rxb7 {[%clk 0:00:16]} 38. Qxb7+ {[%clk 0:00:04]}  Kh6 {[%clk 0:00:17]} 39. Qxf3 {[%clk 0:00:05]}  Qe5 {[%clk 0:00:16]} 40. Ne4 {[%clk 0:00:05]}  Qe6 {[%clk 0:00:15]} 41. Qf4+ {[%clk 0:00:06]}  Kg6 {[%clk 0:00:16]} 42. Qg5+ {[%clk 0:00:06]}  Kf7 {[%clk 0:00:15]} 43. Kg2 {[%clk 0:00:07]}  h6 {[%clk 0:00:15]} 44. Qf4+ {[%clk 0:00:07]}  Ke7 {[%clk 0:00:14]} 45. Qc7+ {[%clk 0:00:07]}  Kf8 {[%clk 0:00:11]} 46. Qd6+ {[%clk 0:00:08]}  Qxd6 {[%clk 0:00:10]} 47. Nxd6 {[%clk 0:00:09]}  Ke7 {[%clk 0:00:11]} 48. Nc8+ {[%clk 0:00:09]}  Kf6 {[%clk 0:00:12]} 49. Nxb6 {[%clk 0:00:10]}  Ke6 {[%clk 0:00:12]} 50. Nd5 {[%clk 0:00:11]}  Kd6 {[%clk 0:00:12]} 51. b6 {[%clk 0:00:12]}  Kc6 {[%clk 0:00:13]} 52. b7 {[%clk 0:00:13]}  Kxb7 {[%clk 0:00:13]} 53. Kh3 {[%clk 0:00:13]}  Kc6 {[%clk 0:00:14]} 54. Kh4 {[%clk 0:00:14]}  Kd6 {[%clk 0:00:15]} 55. Kh5 {[%clk 0:00:15]}  Ke5 {[%clk 0:00:15]} 56. Kxh6 {[%clk 0:00:16]}  Kf5 {[%clk 0:00:16]} 57. f3 {[%clk 0:00:16]}  Ke5 {[%clk 0:00:15]} 58. h4 {[%clk 0:00:16]}  Kf5 {[%clk 0:00:16]} 59. h5 {[%clk 0:00:16]}  Ke5 {[%clk 0:00:16]} 60. Kg6 {[%clk 0:00:17]}  Ke6 {[%clk 0:00:16]} 61. h6 {[%clk 0:00:17]}  Ke5 {[%clk 0:00:17]} 62. h7 {[%clk 0:00:17]}  Kd6 {[%clk 0:00:18]} 63. h8=Q {[%clk 0:00:17]}  Ke6 {[%clk 0:00:19]} 64. Qf6+ {[%clk 0:00:17]}  Kd7 {[%clk 0:00:20]} 65. Qe7+ {[%clk 0:00:17]}  Kc6 {[%clk 0:00:21]} 66. Qc7# {[%clk 0:00:17]} 1-0


[Site "https://www.chess.com"]

[Event "Titled Tuesday Blitz April 25 Early 2023"]
[White "Dzagnidze, Nana"]
[Black "a-z30"]
[WhiteFideId "13601903"]
[WhiteElo "2406"]
[BlackElo "2400"]
[Result "1/2-1/2"]
[Round "04"]
[TimeControl "180+2"]
[Date "2023.04.25"]
[WhiteClock "0:00:03"]
[BlackClock "0:00:03"]

1. Nf3 {[%clk 0:03:00]}  Nf6 {[%clk 0:02:57]} 2. c4 {[%clk 0:02:59]}  g6 {[%clk 0:02:52]} 3. b3 {[%clk 0:02:59]}  Bg7 {[%clk 0:02:52]} 4. Bb2 {[%clk 0:02:59]}  O-O {[%clk 0:02:52]} 5. g3 {[%clk 0:03:00]}  c5 {[%clk 0:02:53]} 6. Bg2 {[%clk 0:03:00]}  Nc6 {[%clk 0:02:52]} 7. O-O {[%clk 0:03:01]}  b6 {[%clk 0:02:50]} 8. e3 {[%clk 0:03:00]}  Bb7 {[%clk 0:02:49]} 9. Nc3 {[%clk 0:03:00]}  Ne4 {[%clk 0:02:47]} 10. d4 {[%clk 0:02:52]}  Nxc3 {[%clk 0:02:42]} 11. Bxc3 {[%clk 0:02:53]}  cxd4 {[%clk 0:01:59]} 12. Nxd4 {[%clk 0:02:49]}  Qc8 {[%clk 0:01:56]} 13. Rc1 {[%clk 0:02:43]}  Nxd4 {[%clk 0:01:55]} 14. Bxd4 {[%clk 0:02:37]}  Bxg2 {[%clk 0:01:53]} 15. Kxg2 {[%clk 0:02:32]}  Qc6+ {[%clk 0:01:53]} 16. Qf3 {[%clk 0:02:27]}  Bxd4 {[%clk 0:01:45]} 17. exd4 {[%clk 0:02:26]}  Qxf3+ {[%clk 0:01:43]} 18. Kxf3 {[%clk 0:02:26]}  Rfd8 {[%clk 0:01:33]} 19. Rfe1 {[%clk 0:02:17]}  Kf8 {[%clk 0:01:32]} 20. a4 {[%clk 0:02:13]}  Rac8 {[%clk 0:01:24]} 21. d5 {[%clk 0:02:07]}  e6 {[%clk 0:01:21]} 22. Rcd1 {[%clk 0:02:06]}  Ke7 {[%clk 0:01:13]} 23. h4 {[%clk 0:02:06]}  h5 {[%clk 0:01:08]} 24. Kf4 {[%clk 0:02:01]}  a6 {[%clk 0:01:06]} 25. Re5 {[%clk 0:01:44]}  d6 {[%clk 0:00:59]} 26. Re3 {[%clk 0:01:33]}  e5+ {[%clk 0:01:00]} 27. Kf3 {[%clk 0:01:09]}  b5 {[%clk 0:01:00]} 28. axb5 {[%clk 0:01:02]}  axb5 {[%clk 0:01:01]} 29. Rc3 {[%clk 0:00:54]}  Rc5 {[%clk 0:00:57]} 30. Ke3 {[%clk 0:00:52]}  f5 {[%clk 0:00:53]} 31. Ra1 {[%clk 0:00:50]}  Rd7 {[%clk 0:00:52]} 32. Ra5 {[%clk 0:00:46]}  Rb7 {[%clk 0:00:47]} 33. Kd2 {[%clk 0:00:39]}  bxc4 {[%clk 0:00:33]} 34. Rxc5 {[%clk 0:00:37]}  dxc5 {[%clk 0:00:34]} 35. bxc4 {[%clk 0:00:36]}  Kd6 {[%clk 0:00:24]} 36. Ra3 {[%clk 0:00:36]}  e4 {[%clk 0:00:23]} 37. Ke3 {[%clk 0:00:34]}  Ke5 {[%clk 0:00:21]} 38. f4+ {[%clk 0:00:16]}  exf3 {[%clk 0:00:22]} 39. Kxf3 {[%clk 0:00:16]}  Kd4 {[%clk 0:00:22]} 40. Ra4 {[%clk 0:00:13]}  Re7 {[%clk 0:00:17]} 41. Kf4 {[%clk 0:00:13]}  Re4+ {[%clk 0:00:17]} 42. Kg5 {[%clk 0:00:13]}  Ke5 {[%clk 0:00:15]} 43. Kxg6 {[%clk 0:00:12]}  Rg4+ {[%clk 0:00:14]} 44. Kxh5 {[%clk 0:00:06]}  Rxg3 {[%clk 0:00:13]} 45. Ra6 {[%clk 0:00:05]}  f4 {[%clk 0:00:11]} 46. Re6+ {[%clk 0:00:05]}  Kd4 {[%clk 0:00:11]} 47. d6 {[%clk 0:00:04]}  Kxc4 {[%clk 0:00:11]} 48. Re4+ {[%clk 0:00:03]}  Kb5 {[%clk 0:00:07]} 49. Rxf4 {[%clk 0:00:02]}  Rd3 {[%clk 0:00:07]} 50. Rf5 {[%clk 0:00:02]}  Kb4 {[%clk 0:00:07]} 51. Kg5 {[%clk 0:00:02]}  Rxd6 {[%clk 0:00:06]} 52. h5 {[%clk 0:00:02]}  c4 {[%clk 0:00:06]} 53. h6 {[%clk 0:00:02]}  c3 {[%clk 0:00:04]} 54. h7 {[%clk 0:00:03]}  Rd8 {[%clk 0:00:04]} 55. Kg6 {[%clk 0:00:03]}  Kb3 {[%clk 0:00:04]} 56. Rh5 {[%clk 0:00:02]}  Rh8 {[%clk 0:00:03]} 57. Kg7 {[%clk 0:00:02]}  Rxh7+ {[%clk 0:00:04]} 58. Kxh7 {[%clk 0:00:03]}  c2 {[%clk 0:00:04]} 59. Rc5 {[%clk 0:00:02]}  Kb2 {[%clk 0:00:04]} 60. Kg6 {[%clk 0:00:03]}  c1=Q {[%clk 0:00:03]} 61. Rxc1 {[%clk 0:00:03]}  Kxc1 {[%clk 0:00:03]} 1/2-1/2


[Site "https://www.chess.com"]

[Event "Titled Tuesday Blitz April 25 Early 2023"]
[White "Alexikov, Alexander"]
[Black "Fiorito, Francisco"]
[WhiteFideId "14103958"]
[BlackFideId "180165"]
[WhiteElo "2186"]
[BlackElo "2341"]
[Result "1-0"]
[Round "04"]
[TimeControl "180+2"]
[Date "2023.04.25"]
[WhiteClock "0:00:56"]
[BlackClock "0:00:03"]

1. e4 {[%clk 0:03:00]}  e5 {[%clk 0:02:58]} 2. Nf3 {[%clk 0:03:00]}  Nf6 {[%clk 0:02:57]} 3. d4 {[%clk 0:02:58]}  Nxe4 {[%clk 0:02:45]} 4. Bd3 {[%clk 0:02:57]}  Nc6 {[%clk 0:02:45]} 5. dxe5 {[%clk 0:02:53]}  Nc5 {[%clk 0:02:44]} 6. Bc4 {[%clk 0:02:52]}  Be7 {[%clk 0:02:31]} 7. Bf4 {[%clk 0:02:48]}  Ne6 {[%clk 0:02:27]} 8. Bg3 {[%clk 0:02:46]}  b6 {[%clk 0:02:26]} 9. O-O {[%clk 0:02:44]}  Bb7 {[%clk 0:02:26]} 10. Re1 {[%clk 0:02:38]}  O-O {[%clk 0:02:25]} 11. Nc3 {[%clk 0:02:36]}  Bc5 {[%clk 0:02:08]} 12. Ne4 {[%clk 0:02:16]}  Be7 {[%clk 0:02:05]} 13. c3 {[%clk 0:02:10]}  Re8 {[%clk 0:01:59]} 14. h4 {[%clk 0:02:00]}  h6 {[%clk 0:01:53]} 15. Bb3 {[%clk 0:01:53]}  h5 {[%clk 0:01:26]} 16. Qd3 {[%clk 0:01:26]}  g6 {[%clk 0:01:24]} 17. Rad1 {[%clk 0:01:24]}  Nb8 {[%clk 0:00:22]} 18. Neg5 {[%clk 0:01:16]}  Bxg5 {[%clk 0:00:19]} 19. Nxg5 {[%clk 0:01:15]}  Nc6 {[%clk 0:00:07]} 20. Ne4 {[%clk 0:00:59]}  Nc5 {[%clk 0:00:02]} 21. Nxc5 {[%clk 0:00:57]}  bxc5 {[%clk 0:00:03]} 22. Qxg6+ {[%clk 0:00:56]} 1-0


[Site "https://www.chess.com"]

[Event "Titled Tuesday Blitz April 25 Early 2023"]
[White "MKlose11"]
[Black "Mouhamad, Joachim"]
[BlackFideId "656410"]
[WhiteElo "2531"]
[BlackElo "2125"]
[Result "1-0"]
[Round "04"]
[TimeControl "180+2"]
[Date "2023.04.25"]
[WhiteClock "0:01:44"]
[BlackClock "0:00:09"]

1. e4 {[%clk 0:03:00]}  c5 {[%clk 0:02:59]} 2. Nc3 {[%clk 0:03:00]}  Nc6 {[%clk 0:02:59]} 3. g3 {[%clk 0:02:59]}  g6 {[%clk 0:02:59]} 4. Bg2 {[%clk 0:02:58]}  Bg7 {[%clk 0:03:00]} 5. d3 {[%clk 0:02:54]}  d6 {[%clk 0:03:00]} 6. Be3 {[%clk 0:02:54]}  Nf6 {[%clk 0:03:00]} 7. h3 {[%clk 0:02:54]}  O-O {[%clk 0:02:57]} 8. Qd2 {[%clk 0:02:54]}  Nd4 {[%clk 0:02:57]} 9. Nd1 {[%clk 0:02:53]}  e5 {[%clk 0:02:56]} 10. c3 {[%clk 0:02:53]}  Ne6 {[%clk 0:02:49]} 11. Bh6 {[%clk 0:02:48]}  Rb8 {[%clk 0:02:30]} 12. Bxg7 {[%clk 0:02:47]}  Kxg7 {[%clk 0:02:29]} 13. Ne3 {[%clk 0:02:48]}  b5 {[%clk 0:02:26]} 14. Ne2 {[%clk 0:02:49]}  a5 {[%clk 0:02:23]} 15. O-O {[%clk 0:02:47]}  b4 {[%clk 0:02:23]} 16. f4 {[%clk 0:02:47]}  exf4 {[%clk 0:02:18]} 17. gxf4 {[%clk 0:02:45]}  bxc3 {[%clk 0:02:13]} 18. bxc3 {[%clk 0:02:45]}  Re8 {[%clk 0:01:41]} 19. f5 {[%clk 0:02:34]}  Nc7 {[%clk 0:01:39]} 20. Rf2 {[%clk 0:02:26]}  d5 {[%clk 0:01:28]} 21. fxg6 {[%clk 0:02:14]}  hxg6 {[%clk 0:01:26]} 22. Raf1 {[%clk 0:02:08]}  Rb6 {[%clk 0:01:20]} 23. exd5 {[%clk 0:02:01]}  Qe7 {[%clk 0:01:04]} 24. Nc4 {[%clk 0:01:59]}  Ncxd5 {[%clk 0:00:45]} 25. Nxb6 {[%clk 0:01:57]}  Nxb6 {[%clk 0:00:44]} 26. Rxf6 {[%clk 0:01:57]}  Be6 {[%clk 0:00:23]} 27. R6f2 {[%clk 0:01:52]}  Rd8 {[%clk 0:00:19]} 28. Nf4 {[%clk 0:01:51]}  Bf5 {[%clk 0:00:18]} 29. Nh5+ {[%clk 0:01:51]}  Kg8 {[%clk 0:00:15]} 30. Qh6 {[%clk 0:01:49]}  Qe5 {[%clk 0:00:13]} 31. Rxf5 {[%clk 0:01:44]}  gxf5 {[%clk 0:00:12]} 32. Rxf5 {[%clk 0:01:45]}  Qe3+ {[%clk 0:00:09]} 33. Qxe3 {[%clk 0:01:44]} 1-0


[Site "https://www.chess.com"]

[Event "Titled Tuesday Blitz April 25 Early 2023"]
[White "Valle Maytin, Luis Enrique"]
[Black "Ronka, Erik"]
[WhiteFideId "3503666"]
[BlackFideId "505080"]
[WhiteElo "2225"]
[BlackElo "2264"]
[Result "0-1"]
[Round "04"]
[TimeControl "180+2"]
[Date "2023.04.25"]
[WhiteClock "0:00:01"]
[BlackClock "0:00:35"]

1. d4 {[%clk 0:03:00]}  d5 {[%clk 0:02:59]} 2. Nf3 {[%clk 0:02:54]}  c6 {[%clk 0:02:59]} 3. e3 {[%clk 0:02:54]}  Bg4 {[%clk 0:02:59]} 4. h3 {[%clk 0:02:50]}  Bh5 {[%clk 0:02:59]} 5. Qe2 {[%clk 0:02:50]}  Nd7 {[%clk 0:02:58]} 6. g4 {[%clk 0:02:50]}  Bg6 {[%clk 0:02:58]} 7. Bg2 {[%clk 0:02:50]}  e6 {[%clk 0:02:58]} 8. Nc3 {[%clk 0:02:47]}  h6 {[%clk 0:02:58]} 9. b3 {[%clk 0:02:46]}  Bb4 {[%clk 0:02:58]} 10. Bb2 {[%clk 0:02:45]}  Qa5 {[%clk 0:02:58]} 11. Qd2 {[%clk 0:02:41]}  Ba3 {[%clk 0:02:54]} 12. Na4 {[%clk 0:02:27]}  Qxd2+ {[%clk 0:02:49]} 13. Kxd2 {[%clk 0:02:28]}  Bxb2 {[%clk 0:02:48]} 14. Nxb2 {[%clk 0:02:26]}  Ngf6 {[%clk 0:02:49]} 15. Nd3 {[%clk 0:02:15]}  Ne4+ {[%clk 0:02:47]} 16. Ke2 {[%clk 0:02:13]}  f6 {[%clk 0:02:47]} 17. c4 {[%clk 0:02:10]}  Nd6 {[%clk 0:02:43]} 18. c5 {[%clk 0:02:02]}  Bxd3+ {[%clk 0:02:36]} 19. Kxd3 {[%clk 0:02:02]}  Nf7 {[%clk 0:02:36]} 20. Nd2 {[%clk 0:01:56]}  O-O-O {[%clk 0:02:33]} 21. b4 {[%clk 0:01:55]}  Kc7 {[%clk 0:02:33]} 22. a4 {[%clk 0:01:55]}  b6 {[%clk 0:02:19]} 23. Nb3 {[%clk 0:01:46]}  bxc5 {[%clk 0:02:06]} 24. bxc5 {[%clk 0:01:40]}  Rb8 {[%clk 0:02:06]} 25. Kc3 {[%clk 0:01:40]}  e5 {[%clk 0:02:06]} 26. f4 {[%clk 0:01:38]}  e4 {[%clk 0:02:06]} 27. Bf1 {[%clk 0:01:35]}  g6 {[%clk 0:02:05]} 28. Be2 {[%clk 0:01:35]}  Nd8 {[%clk 0:01:56]} 29. h4 {[%clk 0:01:35]}  Ne6 {[%clk 0:01:53]} 30. h5 {[%clk 0:01:35]}  g5 {[%clk 0:01:51]} 31. f5 {[%clk 0:01:34]}  Nd8 {[%clk 0:01:51]} 32. Rhb1 {[%clk 0:01:32]}  Nf7 {[%clk 0:01:49]} 33. Rb2 {[%clk 0:01:32]}  Rb7 {[%clk 0:01:48]} 34. Ba6 {[%clk 0:01:30]}  Rbb8 {[%clk 0:01:48]} 35. Rab1 {[%clk 0:01:30]}  Nd8 {[%clk 0:01:42]} 36. Be2 {[%clk 0:01:21]}  Nb7 {[%clk 0:01:39]} 37. a5 {[%clk 0:01:20]}  Nd8 {[%clk 0:01:38]} 38. a6 {[%clk 0:01:19]}  Nf7 {[%clk 0:01:31]} 39. Bd1 {[%clk 0:01:02]}  Rhc8 {[%clk 0:01:30]} 40. Na5 {[%clk 0:00:53]}  Nd8 {[%clk 0:01:25]} 41. Ba4 {[%clk 0:00:43]}  Rxb2 {[%clk 0:01:24]} 42. Rxb2 {[%clk 0:00:42]}  Nb8 {[%clk 0:01:22]} 43. Ra2 {[%clk 0:00:19]}  Nxa6 {[%clk 0:01:19]} 44. Nxc6 {[%clk 0:00:18]}  Nxc6 {[%clk 0:00:48]} 45. Bxc6 {[%clk 0:00:18]}  Nxc5 {[%clk 0:00:49]} 46. Bxd5 {[%clk 0:00:14]}  Kd6 {[%clk 0:00:41]} 47. Bc4 {[%clk 0:00:09]}  Nd7 {[%clk 0:00:39]} 48. Rxa7 {[%clk 0:00:09]}  Nb6 {[%clk 0:00:39]} 49. Ra6 {[%clk 0:00:06]}  Rxc4+ {[%clk 0:00:37]} 50. Kb3 {[%clk 0:00:04]}  Rc6 {[%clk 0:00:38]} 51. Ra7 {[%clk 0:00:01]}  Nd5 {[%clk 0:00:35]} 0-1


[Site "https://www.chess.com"]

[Event "Titled Tuesday Blitz April 25 Early 2023"]
[White "Sadovsky, Artem"]
[Black "Ansh M Shah"]
[WhiteFideId "4155840"]
[BlackFideId "25033379"]
[WhiteElo "2314"]
[BlackElo "2084"]
[Result "0-1"]
[Round "04"]
[TimeControl "180+2"]
[Date "2023.04.25"]
[WhiteClock "0:00:04"]
[BlackClock "0:00:05"]

1. Nf3 {[%clk 0:02:32]}  Nf6 {[%clk 0:02:57]} 2. e3 {[%clk 0:02:33]}  g6 {[%clk 0:02:57]} 3. c4 {[%clk 0:02:29]}  Bg7 {[%clk 0:02:58]} 4. b3 {[%clk 0:02:30]}  c5 {[%clk 0:02:54]} 5. Bb2 {[%clk 0:02:27]}  O-O {[%clk 0:02:54]} 6. Be2 {[%clk 0:02:11]}  Nc6 {[%clk 0:02:53]} 7. O-O {[%clk 0:02:07]}  d5 {[%clk 0:02:49]} 8. cxd5 {[%clk 0:02:05]}  Nxd5 {[%clk 0:02:50]} 9. Bxg7 {[%clk 0:01:57]}  Kxg7 {[%clk 0:02:51]} 10. Qc1 {[%clk 0:01:58]}  Qd6 {[%clk 0:02:38]} 11. Nc3 {[%clk 0:01:38]}  Nxc3 {[%clk 0:02:21]} 12. Qxc3+ {[%clk 0:01:39]}  Kg8 {[%clk 0:02:19]} 13. Rac1 {[%clk 0:01:29]}  b6 {[%clk 0:01:02]} 14. d4 {[%clk 0:01:29]}  Nb4 {[%clk 0:01:01]} 15. dxc5 {[%clk 0:01:21]}  bxc5 {[%clk 0:00:55]} 16. Rfd1 {[%clk 0:01:17]}  Qb6 {[%clk 0:00:40]} 17. Rd2 {[%clk 0:01:01]}  Ba6 {[%clk 0:00:10]} 18. Bxa6 {[%clk 0:00:53]}  Qxa6 {[%clk 0:00:11]} 19. a4 {[%clk 0:00:47]}  Rac8 {[%clk 0:00:10]} 20. Qc4 {[%clk 0:00:36]}  Qxc4 {[%clk 0:00:09]} 21. Rxc4 {[%clk 0:00:37]}  Rfd8 {[%clk 0:00:09]} 22. Rxc5 {[%clk 0:00:34]}  Rxc5 {[%clk 0:00:05]} 23. Rxd8+ {[%clk 0:00:34]}  Kg7 {[%clk 0:00:05]} 24. h4 {[%clk 0:00:33]}  Rc3 {[%clk 0:00:03]} 25. Nd2 {[%clk 0:00:23]}  Rc1+ {[%clk 0:00:02]} 26. Kh2 {[%clk 0:00:21]}  Rc7 {[%clk 0:00:02]} 27. Nc4 {[%clk 0:00:20]}  Na2 {[%clk 0:00:01]} 28. Rd2 {[%clk 0:00:02]}  Nc1 {[%clk 0:00:02]} 29. Na5 {[%clk 0:00:01]}  Rc5 {[%clk 0:00:01]} 30. b4 {[%clk 0:00:02]}  Rc7 {[%clk 0:00:01]} 31. Rd4 {[%clk 0:00:02]}  Na2 {[%clk 0:00:01]} 32. b5 {[%clk 0:00:01]}  Nc3 {[%clk 0:00:01]} 33. Rc4 {[%clk 0:00:02]}  Rxc4 {[%clk 0:00:01]} 34. Nxc4 {[%clk 0:00:02]}  Nxa4 {[%clk 0:00:02]} 35. Kg3 {[%clk 0:00:03]}  Nc3 {[%clk 0:00:02]} 36. b6 {[%clk 0:00:03]}  axb6 {[%clk 0:00:02]} 37. Nxb6 {[%clk 0:00:04]}  Ne4+ {[%clk 0:00:03]} 38. Kf3 {[%clk 0:00:04]}  Nf6 {[%clk 0:00:04]} 39. g4 {[%clk 0:00:04]}  e6 {[%clk 0:00:05]} 40. g5 {[%clk 0:00:04]}  Ne8 {[%clk 0:00:05]} 41. Kf4 {[%clk 0:00:04]}  Nd6 {[%clk 0:00:04]} 42. Ke5 {[%clk 0:00:04]}  Nf5 {[%clk 0:00:05]} 0-1


[Site "https://www.chess.com"]